Cogmind - Beta 16.1 @@@ ROGUE MODE // 2026.02.21 @ 15:02:44 Player: TheSkyeDoctor Result: Destroyed by Y-54 Guardian via exploding Fusion Modulator Performance ------------- Evolutions (3) 1500 Regions Visited (4) 800 Robots Destroyed (23) 115 Value Destroyed (613) 613 Prototype IDs (1) 20 Alien Tech Used (0) 0 Bonus (0) 0 TOTAL SCORE: 3048 Bonus ------- None Cogmind --------- Core Integrity 0/700 Matter 163/300 Energy 100/100 System Corruption 0% Temperature Cool (36) Movement Core (100) Ox1 Location -7/Factory Parts ------- > --- POWER (1) -------- (None) > --- PROPULSION (4) --- (None) > --- UTILITY (6) ------ Advanced Terrain Scan Processor Advanced ECM Suite Component Analysis Suite > --- WEAPON (2) ------- (None) > --- INVENTORY (5) ---- Improved Terrain Scan Processor Improved Targeting Computer Improved Targeting Computer Datajack Peak State ------------ > --- POWER ------------ (None) > --- PROPULSION ------- Aluminum Leg Aluminum Leg Aluminum Leg Aluminum Leg > --- UTILITY ---------- Improved Heat Sink Small Storage Unit Seismic Detector Advanced ECM Suite Core Shielding Component Analysis Suite > --- WEAPON ----------- Flak Gun Gauss Cannon > --- INVENTORY -------- Aluminum Leg Improved Flight Unit Compact Battery Missile Launcher Datajack [Rating: 27] Favorites ----------- Power Light Ion Engine Engine Light Ion Engine Propulsion Aluminum Leg Treads Light Treads Leg Aluminum Leg Hover Unit Airjet Flight Unit Flight Unit Utility Small Storage Unit Device Seismic Detector Storage Small Storage Unit Processor Advanced Terrain Scan Processor Protection Core Shielding Weapon Gauss Cannon Energy Gun EM Pulse Gun Ballistic Gun Light Assault Rifle Ballistic Cannon Gauss Cannon Launcher Missile Launcher Build | -11 -10 -9 -8 -7 ------- Run | Yrd Mat Mat Mat Fac Slots Evolved 6 | . . 2 2 2 Power . | . . . . . Propulsion 2 | . . 2 . . Utility 4 | . . . 2 2 Weapon . | . . . . . Parts Attached 35 | 7 3 1 8 16 Power 1 | 1 . . . . Engine 1 | 1 . . . . Core . | . . . . . Reactor . | . . . . . Propulsion 17 | 2 3 1 4 7 Treads 2 | 2 . . . . Leg 7 | . . . . 7 Wheel . | . . . . . Hover 1 | . . . 1 . Flight 7 | . 3 1 3 . Utility 11 | 2 . . 2 7 Device 7 | 1 . . 2 4 Storage 2 | 1 . . . 1 Processor 1 | . . . . 1 Hackware . | . . . . . Protection 1 | . . . . 1 Artifact . | . . . . . Weapon 6 | 2 . . 2 2 Energy Gun 2 | 1 . . . 1 Energy Cannon . | . . . . . Ballistic Gun 2 | 1 . . . 1 Ballistic Cannon 1 | . . . 1 . Launcher 1 | . . . 1 . Special Weapon . | . . . . . Impact Weapon . | . . . . . Slashing Weapon . | . . . . . Piercing Weapon . | . . . . . Special Melee Weapon . | . . . . . Unidentified Prototypes 1 | . . . 1 . Corrupted Parts 1 | 1 . . . . System Corruption 2 | 2 . . . . Parts Lost 25 | . 1 . 10 14 Power 1 | . . . 1 . Propulsion 11 | . . . 6 5 Utility 7 | . . . 2 5 Weapon 6 | . 1 . 1 4 Highest Loss Streak 14 | . 1 . 9 14 To Critical Strikes . | . . . . . Average Backups 3 | 1 2 3 4 4 Power . | . 1 1 . . Propulsion . | . . . . 1 Utility 1 | . 1 2 1 . Weapon . | . . . 1 1 Tool/Special . | . . . . . Unused Backups 5 | . 1 . 2 2 Power 1 | . . . 1 . Propulsion 1 | . 1 . . . Utility 2 | . . . 1 1 Weapon . | . . . . . Tool/Special 1 | . . . . 1 Average Slot Usage (%) 75 | . 94 75 68 73 Engine 3 | . 14 11 6 . Treads 2 | . 20 . . . Leg 11 | . . . . 19 Flight 10 | . 8 42 27 2 Device 21 | . 14 11 18 24 Storage 7 | . 11 . 9 7 Protection 4 | . . . . 6 Energy Gun 1 | . 12 . . . Ballistic Gun 6 | . 14 11 6 4 Ballistic Cannon 3 | . . . . 5 Peak Build Rating 27 | 7 7 7 16 27 Average Rating 16 | 5 6 6 13 22 On Entrance 4 | . 7 5 7 5 Avg Prop Armor Cover (%) 12 | . . . . 12 Naked Turns . | . . . . . Heaviest Build 23 | 12 12 5 15 23 Greatest Support 40 | 40 40 16 16 40 Greatest Overweight (x) 4 | . . . 3 4 Average Overweight (x) . | . . . . . Largest Inventory Capacity 8 | 8 8 5 8 8 Average Capacity 7 | 7 7 5 8 7 Most Carried 8 | 4 5 4 8 8 Average Carried 3 | 1 2 3 4 4 Final Capacity 8 | 8 5 5 8 5 Final Carried 6 | 2 5 3 6 4 Class Distribution -------------------- 50% | Mutant 31% | Scavenger-Mutant 17% | Scavenger-Sprinter Dominant Class ---------------- Mutant | -10/Materials Scavenger-Sprinter | -9/Materials Scavenger-Sprinter | -8/Materials Scavenger-Mutant | -7/Factory Resources | -11 -10 -9 -8 -7 ----------- Run | Yrd Mat Mat Mat Fac Matter Collected 661 | 279 32 10 . 340 Remotely . | . . . . . Salvage Created 693 | 154 145 35 . 359 Parts 51 | 9 12 6 . 24 Haulers Intercepted . | . . . . . Recyclers Shooed . | . . . . . Parts Field Recycled . | . . . . . Retrieved Matter . | . . . . . Parts Self-Destructed . | . . . . . Prevented . | . . . . . Parts Restored . | . . . . . Kills | -11 -10 -9 -8 -7 ------- Run | Yrd Mat Mat Mat Fac Combat Hostiles Destroyed 16 | . 5 2 . 9 Guns 9 | . 5 2 . 2 Cannons 7 | . . . . 7 Classes Destroyed 10 | 2 2 1 . 5 Worker 1 | . . . . 1 Builder 1 | . . . . 1 Tunneler 3 | 3 . . . . Recycler 1 | 1 . . . . Watcher 1 | . . 1 . . Swarmer 5 | . 3 2 . . Grunt 8 | . 2 . . 6 Duelist 1 | . . . . 1 Sentry 1 | . . . . 1 Programmer 1 | . . . . 1 Best Kill Streak 6 | 2 4 3 . 6 Combat Bots Only 5 | . 4 2 . 5 Max Kills in Single Turn 1 | 1 1 1 . 1 Gunslinging . | . . . . . Exploded . | . . . . . Melee . | . . . . . Uniques/NPCs Destroyed . | . . . . . Combat | -11 -10 -9 -8 -7 -------- Run | Yrd Mat Mat Mat Fac Hostile Shots Fired 417 | . 27 8 128 254 Missed 166 | . 12 4 51 99 Hits 251 | . 15 4 77 155 Melee 2 | . . . . 2 Projectile 249 | . 15 4 77 153 AOE 4 | . . . 1 3 Critical Strikes 3 | . . . 1 2 Actively Blocked 1 | . . . . 1 Damage Taken 2728 | . 146 33 756 1793 Core 1092 | . 50 17 277 748 Absorbed by Shields . | . . . . . Redirected to Shielding 51 | . . . . 51 Core Remaining (%) 81 | 100 80 95 49 . Volleys Fired 63 | 9 17 8 3 26 Largest 2 | 2 2 1 1 2 Hottest 76 | 60 60 20 36 76 Shots Fired 107 | 18 32 8 3 46 Gun 82 | 18 32 8 1 23 Cannon 21 | . . . . 21 Launcher 4 | . . . 2 2 Special . | . . . . . Kinetic 74 | 9 17 8 1 39 Thermal 5 | . . . . 5 Explosive 4 | . . . 2 2 Electromagnetic 24 | 9 15 . . . Robot Hit Streak 8 | 6 6 5 1 8 Robot Miss Streak 5 | 2 2 1 . 5 Penetration Max . | . . . . . Secondary Targets . | . . . . . Shots Hit Robots 76 | 13 19 5 1 38 Core Hits 52 | 6 7 4 1 34 Critical Kills . | . . . . . Critical Parts Destroyed . | . . . . . Critical Strikes 4 | . . . . 4 Blast 4 | . . . . 4 Melee Attacks . | . . . . . Impact . | . . . . . Slashing . | . . . . . Piercing . | . . . . . Sneak Attacks . | . . . . . Combat Hostiles . | . . . . . Follow-up Attacks . | . . . . . Damage Inflicted 1302 | 172 186 44 8 892 Guns 735 | 138 186 44 8 359 Cannons 455 | . . . . 455 Explosions 112 | 34 . . . 78 Melee . | . . . . . Ramming . | . . . . . Kinetic 919 | 50 100 44 8 717 Thermal 131 | 34 . . . 97 Explosive 78 | . . . . 78 Electromagnetic 174 | 88 86 . . . Impact . | . . . . . Slashing . | . . . . . Piercing . | . . . . . Highest Corruption 3 | 2 3 . . . Average Corruption 2 | 2 2 . . . Corruption Purged . | . . . . . Corruption Blocked . | . . . . . Effects 4 | . 4 . . . Heat Flow Errors 1 | . 1 . . . Data Loss (minor) 1 | . 1 . . . Misfires 1 | . 1 . . . Weapon Failures 1 | . 1 . . . Overload Shots . | . . . . . Overflow Damage 20 | 16 . . 4 . Projectiles . | . . . . . Explosions 20 | 16 . . 4 . Melee . | . . . . . Knockbacks 2 | . . . . 2 Impact . | . . . . . Kinetic 2 | . . . . 2 Secondary . | . . . . . Self-Inflicted Damage 26 | . . . 26 . Shots 1 | . . . 1 . Rammed . | . . . . . Targets Rammed . | . . . . . Kicked . | . . . . . Crushed . | . . . . . Highest Temperature 145 | 40 145 5 . 24 Average Temperature 31 | 16 44 1 . 10 Received Heat Transfer 702 | . 60 . 36 606 Siege Activations . | . . . . . Martial Activations . | . . . . . Shielding Activations . | . . . . . Robots Disrupted . | . . . . . Combat Hostiles . | . . . . . Robots Corrupted . | . . . . . Combat Hostiles . | . . . . . Parts Fried . | . . . . . Impact Corruptions . | . . . . . Robots Melted . | . . . . . Combat Hostiles . | . . . . . Parts Melted . | . . . . . Heat Transferred 235 | 50 . . . 185 Parts Sabotaged . | . . . . . Parts Stolen . | . . . . . Parts Stripped . | . . . . . Power Chain Reactions 1 | 1 . . . . Alert | -11 -10 -9 -8 -7 ------- Run | Yrd Mat Mat Mat Fac Maximum Alert Level . | . . . . . Low Security (%) 100 | 100 100 100 100 100 Level 1 . | . . . . . Level 2 . | . . . . . Level 3 . | . . . . . Level 4 . | . . . . . Level 5 . | . . . . . High Security . | . . . . . Max Security . | . . . . . Peak Influence 119 | 5 110 96 65 119 Initial 59 | . . 59 35 24 Average 21 | 1 45 68 16 19 Influence Increases 655 | 20 185 47 118 285 Destroy 0b10 Robot/C 320 | . 100 40 . 180 Destroy 0b10 Robot/NC 35 | 20 . 5 . 10 Destroy Leader 62 | . 20 2 . 40 Successful Hack 20 | . 5 . 15 . Destroy Structure 23 | . . . 13 10 Lose Combat Pursuer 195 | . 60 . 90 45 Influence Decreases 638 | 20 45 101 149 323 Entered New Map 163 | . . 81 51 31 Time Decay 297 | 20 35 20 70 152 Lost Part 178 | . 10 . 28 140 Squads Dispatched 6 | . 1 . 2 3 Investigation 1 | . 1 . . . Extermination 1 | . . . . 1 Reinforcement 2 | . . . 1 1 Assault . | . . . . . Garrison 2 | . . . 1 1 Intercept . | . . . . . Searches Triggered . | . . . . . Construction Impeded . | . . . . . Haulers Reinforced . | . . . . . Active Scanning Responses . | . . . . . Cargo Convoy Interrupts . | . . . . . Stealth | -11 -10 -9 -8 -7 --------- Run | Yrd Mat Mat Mat Fac Distress Signals 6 | . 1 2 3 . Communications Jammed . | . . . . . Distress Signals . | . . . . . Times Spotted 62 | . 10 12 24 16 Peak Tracking Total 13 | . 6 8 13 4 Tactical Retreats 7 | . 2 . 3 2 Traps | -11 -10 -9 -8 -7 ------- Run | Yrd Mat Mat Mat Fac Traps Triggered 1 | . . . . 1 Indirectly . | . . . . . Trap Hack Attempts . | . . . . . Triggered . | . . . . . Disarmed . | . . . . . Reprogrammed . | . . . . . Reused . | . . . . . Traps Extracted . | . . . . . Installed . | . . . . . Triggered . | . . . . . Machines | -11 -10 -9 -8 -7 ---------- Run | Yrd Mat Mat Mat Fac Machines Disabled . | . . . . . Max in Single Turn . | . . . . . Machines Repaired . | . . . . . Machines Dismantled . | . . . . . Machines Sabotaged . | . . . . . Overloaded Fab Kills . | . . . . . Hacking | -11 -10 -9 -8 -7 --------- Run | Yrd Mat Mat Mat Fac Machines Accessed 12 | . 2 2 6 2 Terminals 12 | . 2 2 6 2 Fabricators . | . . . . . Repair Stations . | . . . . . Recycling Units . | . . . . . Scanalyzers . | . . . . . Garrison Access . | . . . . . Total Hacks 29 | . 5 5 15 4 Successful 12 | . 2 3 7 . Failed 17 | . 3 2 8 4 Catastrophic . | . . . . . Database Lockouts . | . . . . . Manual 31 | . 7 5 15 4 Terminals 29 | . 5 5 15 4 Fabricators . | . . . . . Repair Stations . | . . . . . Recycling Units . | . . . . . Scanalyzers . | . . . . . Garrison Access . | . . . . . Terminal Hacks 1 | . . . 1 . Level Access Points 1 | . . . 1 . Fabricator Hacks . | . . . . . Repair Station Hacks . | . . . . . Recycling Unit Hacks . | . . . . . Scanalyzer . | . . . . . Garrison Access Hacks . | . . . . . Unauthorized Hacks 11 | . 2 3 6 . Terminals 11 | . 2 3 6 . Track 1 | . . . 1 . Assimilate 1 | . . 1 . . Botnet 9 | . 2 2 5 . Fabricators . | . . . . . Repair Stations . | . . . . . Recycling Units . | . . . . . Scanalyzers . | . . . . . Garrison Access . | . . . . . Data Cores Recovered . | . . . . . Used . | . . . . . Hacking Detections 12 | . 2 2 6 2 Full Trace Events 1 | . 1 . . . Feedback Events 1 | . 1 . . . Corruption 1 | . 1 . . . Feedback Blocked . | . . . . . Robot Schematics Acquired . | . . . . . Robots Built . | . . . . . Authchips . | . . . . . Time . | . . . . . Total Robot Build Rating . | . . . . . Part Schematics Acquired . | . . . . . Parts Built . | . . . . . Authchips . | . . . . . Time . | . . . . . Total Part Build Rating . | . . . . . Part Studies Acquired . | . . . . . Parts Repaired . | . . . . . Time . | . . . . . Parts Recycled . | . . . . . Recycled Matter . | . . . . . Retrieved Matter . | . . . . . Retrieved Components . | . . . . . Parts Scanalyzed . | . . . . . Part Schematics Acquired . | . . . . . Parts Damaged . | . . . . . Bothacking | -11 -10 -9 -8 -7 ------------ Run | Yrd Mat Mat Mat Fac Used RIF Installer . | . . . . . Robots Hacked . | . . . . . Non-combat . | . . . . . Combat . | . . . . . Robot Hacks Applied . | . . . . . Relay Couplers Released . | . . . . . Fabnet Peak Effective % . | . . . . . Robots Rewired . | . . . . . Allies Hacked . | . . . . . Hacks Repelled . | . . . . . Allies | -11 -10 -9 -8 -7 -------- Run | Yrd Mat Mat Mat Fac Total Allies . | . . . . . Largest Group . | . . . . . Highest-Rated Group . | . . . . . Highest-Rated Ally . | . . . . . Total Orders . | . . . . . Ally Attacks . | . . . . . Total Damage . | . . . . . Kills . | . . . . . Allies Corrupted . | . . . . . Allies Melted . | . . . . . Intel | -11 -10 -9 -8 -7 ------- Run | Yrd Mat Mat Mat Fac Active Infowar (turns) 691 | 41 137 46 175 292 Terrain 171 | . . . 171 . Seismic 660 | 41 137 46 144 292 ECM 2 | . . . . 2 Robot Analysis Total . | . . . . . Derelict Logs Recovered . | . . . . . Drone Launches . | . . . . . Drone Recoveries . | . . . . . Exploration | -11 -10 -9 -8 -7 ------------- Run | Yrd Mat Mat Mat Fac Turns Passed 1257 | 160 137 46 220 694 Spaces Moved 763 | 83 85 95 198 302 Core 46 | 12 . . 4 30 Treads 110 | 71 39 . . . Legs 186 | . . . . 186 Wheels . | . . . . . Hover 19 | . . . 19 . Flight 402 | . 46 95 175 86 Fastest Speed 31 | 50 37 31 31 40 Average Speed 100 | 144 93 31 43 150 Slowest Speed 320 | 160 160 31 200 320 Overloaded Moves . | . . . . . Propulsion Burnouts . | . . . . . Robots Hopped . | . . . . . Potential Cave-ins . | . . . . . Cave-ins Triggered . | . . . . . Exploration Rate (%) 17 | 5 25 21 28 9 Regions Visited 4 Branch Regions . Pre-discovered Areas . | . . . . . Known Exits Taken 1 | . . . 1 . Unknown Exits Taken 3 | 1 1 1 . . Scrap Searched . | . . . . . Spaces Dug 13 | . . . 13 . Terrain Destroyed 39 | 6 . . 23 10 Melee . | . . . . . Projectile 7 | . . . . 7 AOE 32 | 6 . . 23 3 Terrain Rammed . | . . . . . Walls Destroyed . | . . . . . Machines Disabled . | . . . . . Actions | -11 -10 -9 -8 -7 --------- Run | Yrd Mat Mat Mat Fac Total 1149 | 107 114 104 331 493 Wait 233 | . 2 . 101 130 Move 759 | 82 84 94 197 302 Hop . | . . . . . Pick Up 39 | 9 4 . 11 15 Fast Attach 2 | . . . . 2 Attach 36 | 7 . 2 11 16 Detach 7 | . 1 . 5 1 Swap 4 | . 3 . . 1 Drop 6 | . 3 . 3 . Fire 63 | 9 17 8 3 26 Melee . | . . . . . Ram . | . . . . . Kick . | . . . . . Crush . | . . . . . Escape Stasis . | . . . . . Rewire . | . . . . . Trap . | . . . . . Miscellaneous . | . . . . . Route ------- -11/Scrapyard -10/Materials -9/Materials (discovered 2 exits: *Mat / [Sto]) -8/Materials (discovered 3 exits: *Fac x3) -7/Factory History --------- Turn | Location | Event 3 | -11/Scrapyard | Discovered new exit (range 15) 161 | -11/Scrapyard | Entered Materials 294 | -10/Materials | Discovered new exit (range 3) 298 | -10/Materials | Entered another Materials area 298 | -9/Materials | Evolved 2 slots: Propulsion x2 300 | -9/Materials | Discovered new exit (range 16) 339 | -9/Materials | Discovered new exit (range 16) 344 | -9/Materials | Entered another Materials area 344 | -8/Materials | Evolved 2 slots: Utility x2 494 | -8/Materials | Garrison activated, responded to threat 516 | -8/Materials | Identified exit to Factory 557 | -8/Materials | Lost 9 parts (1p5n2u1w) 564 | -8/Materials | Entered Factory 564 | -7/Factory | Evolved 2 slots: Utility x2 1055 | -7/Factory | Build established: Scavenger-Mutant 1161 | -7/Factory | Garrison activated, responded to threat 1241 | -7/Factory | Core integrity fell below 50% 1258 | -7/Factory | Destroyed by Y-54 Guardian via exploding Fusion Modulator Last Messages --------------- Aluminum Leg destroyed. U-05 Engineer lays Concrete. R-06 Scavenger collects Wheel. Triggered Blade Trap. Massive razor-sharp blades shoot up from within the floor. Aluminum Leg severed. U-05 Engineer lays Concrete. Acquired Hvy. Laser. U-05 Engineer lays Concrete. Imp. Heat Sink destroyed. Core Shielding destroyed. Y-54 Guardian destroyed. Hvy. Laser destroyed. ALERT: Cargo convoy en route, clear transfer corridor. Acquired 42 matter. K-01 Serf collects debris. Acquired Imp. Targeting Computer. Fusion Modulator explodes. Map ----- +----------------------------------------------------+ | ?????????????????????????????????????????????????? | | ?????????????????????????????????????????????????? | | ?????????????????????????????????????????????????? | | ?????????????????????????????????????????????????? | | ?????????????????????????????????????????????????? | | ?????????????????????????????????????????????????? | | ?????????????????????????????????????????????????? | | ?????????????????????????????????????????????????? | | ?????????????????????????????????????????????????? | | ?????????????????????????????????????????????????? | | ?????????????????????????????????????????????????? | | ?????????????????????????????????????????????????? | | ?????????????????????????????????????????????????? | | ?????????????????????????????????????????????????? | | ?????????????????????????????????????????????????? | | ?????????????????????????????????????????????????? | | ?????????????????????????????????????????????????? | | ?????????????????????????????????????????????????? | | ?????????????????########+################???????? | | ?????????????????# ## ???????? | | ?????????????????# ## ???????? | | ?????????????????# ## ??????? | | ????????????????## ## """ """ #????? | | ????????????????# ## """ """ #????? | | ?????????????????# Y ;# """ """ ###### | | ?????????????????# @ ;# # | | ?????????????????# ;; """ """ # | | ?????????????????#"" ;# """ """ + | | ????????????######"Tr ;; = """ """ # | | ????????????# #"" ;; # | | ????????????# # Y ;# # | | ????????????# #+###;;;;;;;;;##########+### | | ????????????# # #?# #?????# """ | | ????????????# # #?###########?????# """ | | ????????????# =# #?????????????????# """ | | ????????????# # #?##########??????# | | ????????????# + #?# #??????# | | ????????????# #=#?# """#??????# ####### | | ????????????######=### """#??????# # | | ???????????????# # """#??????# # | | ???????????????# [# % ""#??????# / | | ???????????????# ! #% ""#??????# # """ " | | ????????????#### %%/! #??????# # """ " | | ????????????+ =%#!= #??????# # """ " | | ????????????# !% =#= #??????# # | | ?????????#+## = ################# # | | ???? % ########## ####### | | ???? % #?????# | | ???? #?????# | | ????? #?????# | +----------------------------------------------------+ Best States ------------- Heat Dissipation 48 Energy Generation 10 Energy Capacity 300 Matter Stores 300 Matter Capacity 300 Sight Range 16 Terrain Scan Range 16 Terrain Scan Density 210 Core Shielding 20 Evasion (%) 63 Recoil Reduction 2 Kinecelleration 30 Item Schematics ----------------- None Robot Schematics ------------------ None Fabricated ------------ Nothing Repaired ---------- Nothing Studied --------- None Alien Tech Used ----------------- None Achievements -------------- Quantum Hacking Challenges ------------ None Game ------ Seed LongswordPulsarSubcomponent Manual? 0 Play Time 00:19:32 Cumulative 35.4 hours Start 2026.02.21 @ 14:45:49 End 2026.02.21 @ 15:02:44 Sessions 1 Manual Loads 0 Difficulty Rogue Special Mode None Game No. 83 Rogue 83 Adventurer 0 Explorer 0 Win Type - Total 0 Types 0/0/0/0/0/0/0/0/0/0 Lore% 24 Gallery% 33 Achievement% 24 Wizard Run 0 Options --------- Layout 1 ASCII 0 Keyboard 0 Movement Mouse Keybinds 0 Fullscreen 1 Font 24/Smallcaps Map View 50x35 Zoom Use 0% Tactical HUD 0 Map Filters NONE Filters NONE Steam 1 RUN: a7fda3f0-9cf4-4084-9eb8-278df60cbd7c